fUSD/lending_fUSD_20260507
["ID","MTS","AMOUNT","RATE_DAILY","PERIOD"]
[421765507,1778121041000,-157.99,0.00026131,2]
[421765509,1778121041000,-1273.608,0.00026136,2]
[421765512,1778121041000,-6044.0,0.00026136,2]
[421765596,1778121042000,-1734.91,0.000289,7]
[421765601,1778121042000,-556.33,0.00028979,30]
[421765590,1778121042000,-553.32,0.0002882,2]
[421765602,1778121042000,-553.32,0.00028979,30]
[421765587,1778121042000,-556.33,0.00028788,30]
[421765589,1778121042000,-556.33,0.0002882,2]
[421765591,1778121042000,-556.33,0.00028852,7]
[421765588,1778121042000,-553.32,0.00028788,30]
[421765585,1778121042000,-556.33,0.00028756,7]
[421765586,1778121042000,-553.32,0.00028756,7]
[421765597,1778121042000,-556.33,0.00028915,2]
[421765592,1778121042000,-553.32,0.00028852,7]
[421765593,1778121042000,-503.0,0.0002887,3]
[421765606,1778121042000,-350.0,0.00028988,2]
[421765594,1778121042000,-556.33,0.00028883,30]
[421765599,1778121042000,-556.33,0.00028947,7]
[421765600,1778121042000,-553.32,0.00028947,7]
[421765598,1778121042000,-553.32,0.00028915,2]
[421765595,1778121042000,-553.32,0.00028883,30]
[421765615,1778121042000,-553.32,0.0002901,2]
[421765605,1778121042000,-350.0,0.00028988,2]
[421765616,1778121042000,-556.33,0.00029042,7]
[421765617,1778121042000,-553.32,0.00029042,7]
[421765604,1778121042000,-350.0,0.00028988,2]
[421765607,1778121042000,-350.0,0.00028988,2]
[421765609,1778121042000,-350.0,0.00028988,2]
[421765584,1778121042000,-553.32,0.00028725,2]
[421765603,1778121042000,-350.0,0.00028988,2]
[421765583,1778121042000,-556.33,0.00028725,2]
[421765557,1778121042000,-165.05,0.00028,2]
[421765582,1778121042000,-553.32,0.00028693,30]
[421765608,1778121042000,-350.0,0.00028988,2]
[421765556,1778121042000,-165.05,0.00028,2]
[421765554,1778121042000,-165.05,0.00028,2]
[421765555,1778121042000,-165.05,0.00028,2]
[421765553,1778121042000,-165.05,0.00028,2]
[421765558,1778121042000,-165.05,0.00028,2]
[421765559,1778121042000,-165.05,0.00028,2]
[421765561,1778121042000,-200.0,0.00028058,2]
[421765566,1778121042000,-800.0,0.00028062,2]
[421765567,1778121042000,-800.0,0.00028062,2]
[421765560,1778121042000,-503.0,0.00028004,2]
[421765568,1778121042000,-800.0,0.00028062,2]
[421765564,1778121042000,-800.0,0.00028062,2]
[421765581,1778121042000,-556.33,0.00028693,30]
[421765562,1778121042000,-800.0,0.00028062,2]
[421765563,1778121042000,-800.0,0.00028062,2]
[421765570,1778121042000,-800.0,0.00028062,2]
[421765578,1778121042000,-553.32,0.0002863,2]
[421765579,1778121042000,-556.33,0.00028661,7]
[421765580,1778121042000,-553.32,0.00028661,7]
[421765569,1778121042000,-800.0,0.00028062,2]
[421765571,1778121042000,-694.0,0.00028062,2]
[421765572,1778121042000,-157.99,0.00028142,2]
[421765573,1778121042000,-799.3,0.00028267,2]
[421765576,1778121042000,-8662.0,0.000285,2]
[421765577,1778121042000,-556.33,0.0002863,2]
[421765574,1778121042000,-772.36555237,0.00028307,2]
[421765575,1778121042000,-152.0,0.00028486,3]
[421765565,1778121042000,-800.0,0.00028062,2]
[421765613,1778121042000,-67472.04,0.00029,7]
[421765622,1778121042000,-200.0,0.0002913,20]
[421765614,1778121042000,-556.33,0.0002901,2]
[421765650,1778121042000,-1534.11190303,0.0003027,2]
[421765653,1778121042000,-2000.0,0.00030327,2]
[421765654,1778121042000,-152.0,0.0003034,4]
[421765651,1778121042000,-1734.91,0.000303,7]
[421765655,1778121042000,-772.36555237,0.00030384,2]
[421765659,1778121042000,-1534.11190303,0.00030808,2]
[421765658,1778121042000,-503.0,0.00030603,5]
[421765657,1778121042000,-1534.11190303,0.00030576,2]
[421765656,1778121042000,-1534.11190303,0.00030445,2]
[421765660,1778121042000,-8054.359,0.00030997,2]
[421765668,1778121042000,-202.0,0.00031284,30]
[421765669,1778121042000,-240.0,0.00031284,30]
[421765661,1778121042000,-150.0,0.00031011,2]
[421765648,1778121042000,-799.3,0.00030239,2]
[421765670,1778121042000,-798.0,0.00031284,30]
[421765671,1778121042000,-210.0,0.00031284,30]
[421765666,1778121042000,-188.0,0.00031283,30]
[421765663,1778121042000,-308.5174995,0.000311,7]
[421765612,1778121042000,-155.0,0.00028988,2]
[421765665,1778121042000,-673.47575812,0.00031196,2]
[421765664,1778121042000,-2356.99804701,0.000311,7]
[421765673,1778121042000,-322.0,0.00031284,30]
[421765675,1778121042000,-156.0,0.00031284,30]
[421765672,1778121042000,-154.0,0.00031284,30]
[421765674,1778121042000,-158.0,0.00031284,30]
[421765676,1778121042000,-922.0,0.00031294,30]
[421765677,1778121042000,-1000.0,0.00031338,7]
[421765678,1778121042000,-503.0,0.0003147,6]
[421765662,1778121042000,-64806.52445349,0.000311,7]
[421765647,1778121042000,-157.99,0.00030152,2]
[421765667,1778121042000,-154.0,0.00031283,30]
[421765640,1778121042000,-192.0,0.00029781,2]
[421765646,1778121042000,-558.6170235,0.00030137,120]
[421765610,1778121042000,-350.0,0.00028988,2]
[421765611,1778121042000,-350.0,0.00028988,2]
[421765628,1778121042000,-556.33,0.00029169,30]
[421765627,1778121042000,-553.32,0.00029137,7]
[421765619,1778121042000,-553.32,0.00029074,30]
[421765624,1778121042000,-925.0,0.00029136,2]
[421765629,1778121042000,-553.32,0.00029169,30]
[421765626,1778121042000,-556.33,0.00029137,7]
[421765630,1778121042000,-5529.0,0.000292,3]
[421765625,1778121042000,-6044.0,0.00029136,2]
[421765620,1778121042000,-556.33,0.00029105,2]
[421765618,1778121042000,-556.33,0.00029074,30]
[421765623,1778121042000,-1222.0,0.00029136,2]
[421765621,1778121042000,-553.32,0.00029105,2]
[421765643,1778121042000,-1534.11190303,0.00030136,2]
[421765639,1778121042000,-503.0,0.00029737,4]
[421765632,1778121042000,-556.33,0.00029232,7]
[421765638,1778121042000,-202.80725,0.0002973,7]
[421765634,1778121042000,-475.44,0.00029283,7]
[421765637,1778121042000,-150.0,0.00029534,2]
[421765633,1778121042000,-1534.11190303,0.00029273,2]
[421765635,1778121042000,-200.0,0.0002933,7]
[421765631,1778121042000,-556.33,0.00029201,2]
[421765645,1778121042000,-400.44450128,0.00030137,120]
[421765642,1778121042000,-4655.4705,0.0003003,2]
[421765641,1778121042000,-5529.0,0.0003,5]
[421765644,1778121042000,-261.96,0.00030137,2]
[421765636,1778121042000,-200.0,0.0002953,7]
[421765725,1778121043000,-950.37593441,0.00032,120]
[421765716,1778121043000,-336.04361734,0.000319,2]
[421765726,1778121043000,-1004.79427678,0.00032,120]
[421765706,1778121043000,-527.48854252,0.00031715,2]
[421765723,1778121043000,-1279.54,0.00032,30]
[421765727,1778121043000,-188.61406624,0.00032,120]
[421765719,1778121043000,-527.48854252,0.00031923,2]
[421765741,1778121043000,-352.75,0.00021294,2]
[421765735,1778121043000,-1528.90178509,0.00032136,2]
[421765728,1778121043000,-258.01024755,0.00032,120]
[421765730,1778121043000,-854.17208169,0.00032,120]
[421765729,1778121043000,-235.13716221,0.00032,120]
[421765734,1778121043000,-925.0,0.00032136,2]
[421765733,1778121043000,-1222.0,0.00032136,2]
[421765732,1778121043000,-231.10764982,0.00032,120]
[421765683,1778121043000,-150.0,0.00031571,2]
[421765713,1778121043000,-336.04361734,0.000319,2]
[421765721,1778121043000,-527.48854252,0.0003196,2]
[421765711,1778121043000,-336.04361737,0.000319,2]
[421765691,1778121043000,-200.0,0.00031571,2]
[421765708,1778121043000,-1734.91,0.000318,7]
[421765684,1778121043000,-226.0,0.00031571,2]
[421765685,1778121043000,-200.0,0.00031571,2]
[421765680,1778121043000,-150.0,0.00031571,2]
[421765682,1778121043000,-150.0,0.00031571,2]
[421765681,1778121043000,-150.0,0.00031571,2]
[421765679,1778121043000,-2000.0,0.00031507,30]
[421765686,1778121043000,-200.0,0.00031571,2]
[421765689,1778121043000,-200.0,0.00031571,2]
[421765710,1778121043000,-527.48854252,0.00031854,2]
[421765698,1778121043000,-200.0,0.00031571,2]
[421765697,1778121043000,-200.0,0.00031571,2]
[421765687,1778121043000,-200.0,0.00031571,2]
[421765699,1778121043000,-173.0,0.00031571,2]
[421765696,1778121043000,-200.0,0.00031571,2]
[421765700,1778121043000,-527.48854252,0.00031583,2]
[421765701,1778121043000,-755.0,0.00031706,30]
[421765704,1778121043000,-1147.0,0.00031706,30]
[421765702,1778121043000,-818.0,0.00031706,30]
[421765693,1778121043000,-200.0,0.00031571,2]
[421765742,1778121043000,-647.25,0.00021294,2]
[421765724,1778121043000,-187.00984038,0.00032,120]
[421765745,1778121043000,-174.39421749,0.000273,2]
[421765761,1778121043000,-202.0,0.00032284,30]
[421765767,1778121043000,-158.0,0.00032284,30]
[421765770,1778121043000,-527.48854252,0.0003232,2]
[421765773,1778121043000,-772.36555237,0.00032461,2]
[421765780,1778121043000,-1734.91,0.000329,30]
[421765774,1778121043000,-67472.04,0.000325,7]
[421765771,1778121043000,-287.0,0.00032389,2]
[421765779,1778121043000,-261.96,0.00032877,2]
[421765772,1778121043000,-527.48854252,0.00032412,2]
[421765777,1778121043000,-709.38220763,0.00032756,2]
[421765776,1778121043000,-527.48854252,0.00032746,2]
[421765778,1778121043000,-311.62284043,0.00032756,2]
[421765775,1778121043000,-150.0,0.00032562,2]
[421765781,1778121043000,-527.48854252,0.00032913,2]
[421765782,1778121043000,-7974.2941821,0.00032915,2]
[421765783,1778121043000,-151.39655091,0.00032915,2]
[421765785,1778121043000,-500.0,0.00032999,30]
[421765784,1778121043000,-500.0,0.00032999,120]
[421765743,1778121043000,-27006.66100406,0.00025611,2]
[421765768,1778121043000,-156.0,0.00032284,30]
[421765762,1778121043000,-240.0,0.00032284,30]
[421765731,1778121043000,-430.23474839,0.00032,120]
[421765764,1778121043000,-210.0,0.00032284,30]
[421765766,1778121043000,-322.0,0.00032284,30]
[421765744,1778121043000,-3537.0,0.00026329,2]
[421765747,1778121043000,-553.32,0.00029201,2]
[421765756,1778121043000,-1000.0,0.000322,2]
[421765748,1778121043000,-553.39,0.00029232,7]
[421765751,1778121043000,-152.0,0.00032195,5]
[421765752,1778121043000,-527.48854252,0.00032196,2]
[421765749,1778121043000,-152.0,0.0003038,7]
[421765750,1778121043000,-4515.09821491,0.00032136,2]
[421765755,1778121043000,-882.0,0.000322,2]
[421765746,1778121043000,-17593.76,0.00027397,10]
[421765754,1778121043000,-1279.54,0.000322,30]
[421765753,1778121043000,-616.0,0.000322,2]
[421765759,1778121043000,-188.0,0.00032283,30]
[421765769,1778121043000,-922.0,0.00032294,30]
[421765758,1778121043000,-248.0,0.0003224,2]
[421765763,1778121043000,-798.0,0.00032284,30]
[421765765,1778121043000,-154.0,0.00032284,30]
[421765760,1778121043000,-154.0,0.00032283,30]
[421765757,1778121043000,-799.3,0.0003221,5]
[421765841,1778121044000,-150.0,0.0003419,2]
[421765834,1778121044000,-5000.0,0.00033916,2]
[421765839,1778121044000,-799.3,0.00034182,7]
[421765838,1778121044000,-503.0,0.0003407,9]
[421765842,1778121044000,-188.0,0.00034283,30]
[421765832,1778121044000,-5000.0,0.00033916,2]
[421765830,1778121044000,-7016.45368342,0.00033916,2]
[421765837,1778121044000,-152.0,0.0003405,6]
[421765835,1778121044000,-5000.0,0.00033916,2]
[421765836,1778121044000,-67472.04,0.00034,7]
[421765824,1778121044000,-950.37593441,0.000339,120]
[421765840,1778121044000,-214.63993676,0.00034182,7]
[421765833,1778121044000,-5000.0,0.00033916,2]
[421765843,1778121044000,-158.89987699,0.00034283,30]
[421765848,1778121044000,-798.0,0.00034284,30]
[421765854,1778121044000,-922.0,0.00034294,30]
[421765853,1778121044000,-159.86821786,0.00034284,30]
[421765857,1778121044000,-2299.4616182,0.00034465,7]
[421765856,1778121044000,-272.95547625,0.00034465,7]
[421765855,1778121044000,-1734.91,0.000343,30]
[421765859,1778121044000,-1500.0,0.00034795,2]
[421765858,1778121044000,-167.0,0.00034521,30]
[421765844,1778121044000,-202.0,0.00034284,30]
[421765826,1778121044000,-235.13716221,0.000339,120]
[421765850,1778121044000,-210.0,0.00034284,30]
[421765845,1778121044000,-240.0,0.00034284,30]
[421765851,1778121044000,-157.18260307,0.00034284,30]
[421765860,1778121044000,-33139.5584,0.000349,2]
[421765852,1778121044000,-322.0,0.00034284,30]
[421765828,1778121044000,-430.23474839,0.000339,120]
[421765801,1778121044000,-503.0,0.00033203,8]
[421765823,1778121044000,-4554.0,0.00033816,2]
[421765793,1778121044000,-188.61406624,0.00033,120]
[421765792,1778121044000,-1004.79427678,0.00033,120]
[421765786,1778121044000,-500.0,0.00032999,120]
[421765787,1778121044000,-512.22577348,0.00032999,2]
[421765788,1778121044000,-500.0,0.00032999,7]
[421765790,1778121044000,-500.0,0.00032999,30]
[421765791,1778121044000,-950.37593441,0.00033,120]
[421765789,1778121044000,-500.0,0.00032999,120]
[421765807,1778121044000,-240.0,0.00033284,30]
[421765805,1778121044000,-154.0,0.00033283,30]
[421765808,1778121044000,-798.0,0.00033284,30]
[421765810,1778121044000,-210.0,0.00033284,30]
[421765806,1778121044000,-202.0,0.00033284,30]
[421765794,1778121044000,-235.13716221,0.00033,120]
[421765812,1778121044000,-154.0,0.00033284,30]
[421765813,1778121044000,-322.0,0.00033284,30]
[421765796,1778121044000,-854.17208169,0.00033,120]
[421765800,1778121044000,-167.0,0.00033,14]
[421765798,1778121044000,-430.23474839,0.00033,120]
[421765803,1778121044000,-188.0,0.00033283,30]
[421765862,1778121044000,-503.0,0.00034936,10]
[421765814,1778121044000,-158.0,0.00033284,30]
[421765816,1778121044000,-922.0,0.00033294,30]
[421765817,1778121044000,-4000.0,0.00033342,60]
[421765818,1778121044000,-15910.45960501,0.00033356,120]
[421765815,1778121044000,-163.15296814,0.00033284,30]
[421765820,1778121044000,-633.21516509,0.00033356,120]
[421765822,1778121044000,-185.892727,0.0003344,120]
[421765827,1778121044000,-854.17208169,0.000339,120]
[421765825,1778121044000,-1004.79427678,0.000339,120]
[421765864,1778121044000,-1004.79427678,0.00035,120]
[421765821,1778121044000,-13332.85,0.0003338,2]
[421765870,1778121044000,-229.68222144,0.00035,120]
[421765899,1778121044000,-4012.0,0.00035951,15]
[421765907,1778121044000,-395.0,0.00036164,2]
[421765926,1778121044000,-2000.0,0.00036696,2]
[421765910,1778121044000,-1176.0,0.00036243,2]
[421765909,1778121044000,-1345.7068967,0.00036243,2]
[421765908,1778121044000,-263.716634,0.00036164,2]
[421765898,1778121044000,-152.0,0.00035905,7]
[421765900,1778121044000,-950.37593441,0.00036,120]
[421765904,1778121044000,-430.23474839,0.00036,120]
[421765905,1778121044000,-799.3,0.00036153,30]
[421765903,1778121044000,-854.17208169,0.00036,120]
[421765906,1778121044000,-2130.0,0.00036164,2]
[421765902,1778121044000,-235.13716221,0.00036,120]
[421765911,1778121044000,-167.0,0.00036247,30]
[421765912,1778121044000,-188.0,0.00036283,30]
[421765913,1778121044000,-202.0,0.00036284,30]
[421765914,1778121044000,-240.0,0.00036284,30]
[421765916,1778121044000,-210.0,0.00036284,30]
[421765915,1778121044000,-798.0,0.00036284,30]
[421765920,1778121044000,-2000.0,0.00036696,2]
[421765917,1778121044000,-322.0,0.00036284,30]
[421765923,1778121044000,-2000.0,0.00036696,2]
[421765918,1778121044000,-922.0,0.00036294,30]
[421765922,1778121044000,-2000.0,0.00036696,2]
[421765921,1778121044000,-2000.0,0.00036696,2]
[421765919,1778121044000,-503.0,0.0003667,12]
[421765925,1778121044000,-2000.0,0.00036696,2]
[421765924,1778121044000,-2000.0,0.00036696,2]
[421765867,1778121044000,-430.23474839,0.00035,120]
[421765893,1778121044000,-1734.91,0.000357,30]
[421765890,1778121044000,-631.0,0.00035616,10]
[421765901,1778121044000,-1004.79427678,0.00036,120]
[421765894,1778121044000,-2122.0,0.00035745,5]
[421765863,1778121044000,-950.37593441,0.00035,120]
[421765861,1778121044000,-2000.0,0.000349,2]
[421765891,1778121044000,-261.96,0.00035616,2]
[421765869,1778121044000,-180.374,0.00035,2]
[421765871,1778121044000,-436.27,0.00035125,2]
[421765868,1778121044000,-150.0,0.00035,2]
[421765866,1778121044000,-854.17208169,0.00035,120]
[421765873,1778121044000,-925.0,0.00035136,2]
[421765884,1778121044000,-594.35303198,0.00035531,5]
[421765883,1778121044000,-67472.04,0.000353,7]
[421765872,1778121044000,-1222.0,0.00035136,2]
[421765879,1778121044000,-798.0,0.00035284,30]
[421765882,1778121044000,-922.0,0.00035294,30]
[421765881,1778121044000,-322.0,0.00035284,30]
[421765874,1778121044000,-6044.0,0.00035136,2]
[421765865,1778121044000,-235.13716221,0.00035,120]
[421765875,1778121044000,-4000.0,0.00035151,60]
[421765876,1778121044000,-188.0,0.00035283,30]
[421765895,1778121044000,-2710.0,0.00035745,5]
[421765889,1778121044000,-1000.0,0.00035616,10]
[421765896,1778121044000,-503.0,0.00035803,11]
[421765888,1778121044000,-1000.0,0.00035616,10]
[421765887,1778121044000,-1000.0,0.00035616,10]
[421765886,1778121044000,-1000.0,0.00035616,10]
[421765885,1778121044000,-673.47575812,0.00035548,2]
[421765878,1778121044000,-240.0,0.00035284,30]
[421765877,1778121044000,-202.0,0.00035284,30]
[421765892,1778121044000,-2000.0,0.00035692,120]
[421765880,1778121044000,-210.0,0.00035284,30]
[421765897,1778121044000,-150.0,0.00035899,2]
[421765928,1778121045000,-2000.0,0.00036696,2]
[421765929,1778121045000,-2000.0,0.00036696,2]
[421765930,1778121045000,-176.14,0.00036734,10]
[421765927,1778121045000,-2000.0,0.00036696,2]
[421765933,1778121045000,-350.33533698,0.00036756,2]
[421765932,1778121045000,-319.71,0.00036756,2]
[421765934,1778121045000,-1016.59080085,0.00036756,2]
[421765931,1778121045000,-26415.97603197,0.00036756,2]
[421766004,1778121047000,-9167.64423464,0.00037,7]
[421766006,1778121047000,-319.71,0.00037,7]
[421766002,1778121047000,-334.08,0.00037,7]
[421766000,1778121047000,-574.0,0.00032,30]
[421765994,1778121047000,-1255.40367809,0.00036963,15]
[421766001,1778121047000,-8337.89564265,0.00037,7]
[421765999,1778121047000,-3537.0,0.00029329,2]
[421765995,1778121047000,-430.4257349,0.00036963,15]
[421766013,1778121047000,-240.0,0.00037284,30]
[421765996,1778121047000,-2326.17058701,0.00036963,15]
[421765997,1778121047000,-2041.85,0.00036986,60]
[421765993,1778121047000,-201.30162514,0.00036961,2]
[421765992,1778121047000,-445.36469677,0.00036905,10]
[421765991,1778121047000,-1279.46530323,0.00036905,10]
[421765989,1778121047000,-946.09,0.00036831,10]
[421765988,1778121047000,-30413.61436336,0.00036756,2]
[421765990,1778121047000,-436.27,0.00036882,2]
[421765998,1778121047000,-473.80213353,0.00037,7]
[421766008,1778121047000,-26926.11494134,0.00037,7]
[421766014,1778121047000,-798.0,0.00037284,30]
[421766012,1778121047000,-202.0,0.00037284,30]
[421766003,1778121047000,-5186.96950047,0.00037,7]
[421766021,1778121047000,-333.0,0.00037671,120]
[421766019,1778121047000,-503.0,0.00037536,13]
[421766022,1778121047000,-3017.699,0.00037693,49]
[421766023,1778121047000,-248.653,0.00037693,49]
[421766018,1778121047000,-200.560332,0.000374,14]
[421766020,1778121047000,-1548.027856,0.00037555,60]
[421766017,1778121047000,-922.0,0.00037294,30]
[421766027,1778121047000,-500.0,0.00037756,21]
[421766024,1778121047000,-150.0,0.00037694,2]
[421766026,1778121047000,-900.0,0.00037756,21]
[421766025,1778121047000,-504.26280431,0.00037756,21]
[421766015,1778121047000,-210.0,0.00037284,30]
[421766009,1778121047000,-1734.91,0.000372,30]
[421766011,1778121047000,-188.0,0.00037283,30]
[421766007,1778121047000,-16206.26241105,0.00037,7]
[421766005,1778121047000,-519.56113632,0.00037,7]
[421766016,1778121047000,-322.0,0.00037284,30]
[421766010,1778121047000,-207.72755921,0.000372,120]
[421766066,1778121048000,-200.0,0.0003829,2]
[421766065,1778121048000,-200.0,0.0003829,2]
[421766061,1778121048000,-200.0,0.0003829,2]
[421766055,1778121048000,-200.0,0.0003829,2]
[421766057,1778121048000,-200.0,0.0003829,2]
[421766028,1778121048000,-152.0,0.00037759,8]
[421766064,1778121048000,-200.0,0.0003829,2]
[421766059,1778121048000,-200.0,0.0003829,2]
[421766056,1778121048000,-200.0,0.0003829,2]
[421766072,1778121048000,-200.0,0.0003829,2]
[421766062,1778121048000,-248.0,0.0003829,2]
[421766063,1778121048000,-200.0,0.0003829,2]
[421766068,1778121048000,-200.0,0.0003829,2]
[421766078,1778121048000,-200.0,0.0003829,2]
[421766067,1778121048000,-200.0,0.0003829,2]
[421766079,1778121048000,-200.0,0.0003829,2]
[421766080,1778121048000,-200.0,0.0003829,2]
[421766070,1778121048000,-200.0,0.0003829,2]
[421766047,1778121048000,-200.0,0.0003829,2]
[421766073,1778121048000,-200.0,0.0003829,2]
[421766060,1778121048000,-200.0,0.0003829,2]
[421766048,1778121048000,-200.0,0.0003829,2]
[421766053,1778121048000,-200.0,0.0003829,2]
[421766050,1778121048000,-200.0,0.0003829,2]
[421766031,1778121048000,-350.0,0.00038085,3]
[421766033,1778121048000,-371.513,0.00038136,2]
[421766032,1778121048000,-799.3,0.00038125,30]
[421766030,1778121048000,-4012.0,0.00037975,15]
[421766034,1778121048000,-925.0,0.00038136,2]
[421766036,1778121048000,-65523.72350557,0.000382,7]
[421766037,1778121048000,-1948.31649443,0.000382,7]
[421766029,1778121048000,-1548.027856,0.00037947,60]
[421766035,1778121048000,-3956.143,0.00038136,2]
[421766038,1778121048000,-2957.48994352,0.00038218,2]
[421766040,1778121048000,-840.0,0.00038266,2]
[421766039,1778121048000,-477.0,0.00038233,2]
[421766054,1778121048000,-200.0,0.0003829,2]
[421766052,1778121048000,-200.0,0.0003829,2]
[421766071,1778121048000,-200.0,0.0003829,2]
[421766043,1778121048000,-200.0,0.0003829,2]
[421766041,1778121048000,-207.61,0.00038276,60]
[421766045,1778121048000,-200.0,0.0003829,2]
[421766044,1778121048000,-200.0,0.0003829,2]
[421766051,1778121048000,-200.0,0.0003829,2]
[421766049,1778121048000,-200.0,0.0003829,2]
[421766046,1778121048000,-200.0,0.0003829,2]
[421766075,1778121048000,-200.0,0.0003829,2]
[421766042,1778121048000,-214.54,0.00038276,60]
[421766076,1778121048000,-200.0,0.0003829,2]
[421766105,1778121048000,-300.0,0.00038316,2]
[421766107,1778121048000,-309.36726268,0.00038316,2]
[421766108,1778121048000,-301.55262174,0.00038316,2]
[421766114,1778121048000,-153.66734861,0.00038316,2]
[421766109,1778121048000,-1097.81421432,0.00038316,2]
[421766110,1778121048000,-603.53328922,0.00038316,2]
[421766116,1778121048000,-283.26084134,0.00038316,2]
[421766106,1778121048000,-483.34199355,0.00038316,2]
[421766115,1778121048000,-724.93361989,0.00038316,2]
[421766113,1778121048000,-911.60802971,0.00038316,2]
[421766101,1778121048000,-300.0,0.00038316,2]
[421766112,1778121048000,-526.79139311,0.00038316,2]
[421766118,1778121048000,-300.0,0.00038316,2]
[421766119,1778121048000,-595.39807724,0.00038316,2]
[421766123,1778121048000,-200.0,0.0003829,2]
[421766117,1778121048000,-18.02509146,0.00038316,2]
[421766122,1778121048000,-300.2351784,0.00038316,2]
[421766121,1778121048000,-343.45478996,0.00038316,2]
[421766120,1778121048000,-852.88686294,0.00038316,2]
[421766124,1778121048000,-8.88006449,0.00038316,2]
[421766125,1778121048000,-683.30328629,0.00038316,2]
[421766069,1778121048000,-200.0,0.0003829,2]
[421766111,1778121048000,-301.35461756,0.00038316,2]
[421766102,1778121048000,-300.0,0.00038316,2]
[421766058,1778121048000,-200.0,0.0003829,2]
[421766104,1778121048000,-300.75106869,0.00038316,2]
[421766077,1778121048000,-200.0,0.0003829,2]
[421766074,1778121048000,-200.0,0.0003829,2]
[421766081,1778121048000,-200.0,0.0003829,2]
[421766083,1778121048000,-200.0,0.0003829,2]
[421766084,1778121048000,-200.0,0.0003829,2]
[421766089,1778121048000,-200.0,0.0003829,2]
[421766088,1778121048000,-200.0,0.0003829,2]
[421766085,1778121048000,-200.0,0.0003829,2]
[421766082,1778121048000,-200.0,0.0003829,2]
[421766087,1778121048000,-200.0,0.0003829,2]
[421766086,1778121048000,-200.0,0.0003829,2]
[421766093,1778121048000,-309.11524289,0.00038316,2]
[421766090,1778121048000,-200.0,0.0003829,2]
[421766100,1778121048000,-453.30135354,0.00038316,2]
[421766096,1778121048000,-310.41737646,0.00038316,2]
[421766098,1778121048000,-465.37878851,0.00038316,2]
[421766103,1778121048000,-300.0,0.00038316,2]
[421766099,1778121048000,-300.0,0.00038316,2]
[421766094,1778121048000,-863.09416045,0.00038316,2]
[421766095,1778121048000,-469.76096658,0.00038316,2]
[421766092,1778121048000,-1734.91,0.000383,30]
[421766091,1778121048000,-200.0,0.0003829,2]
[421766097,1778121048000,-300.0,0.00038316,2]
[421766132,1778121049000,-7712.49646122,0.00032756,2]
[421766130,1778121049000,-743.10067947,0.00032329,2]
[421766131,1778121049000,-3315.77663439,0.00032756,2]
[421766129,1778121049000,-571.82945458,0.00032329,2]
[421766128,1778121049000,-319.71,0.00032329,2]
[421766126,1778121049000,-903.35986595,0.00032329,2]
[421766127,1778121049000,-999.0,0.00032329,2]
[421766133,1778121049000,-338.89006486,0.00032756,2]
[421766135,1778121340000,152.0,0.00011994,2]
[421766136,1778121367000,156.84,7.929e-05,2]
[421766137,1778121395000,10087.90936313,0.0002739,120]
[421766138,1778121657000,52315.43082591,0.00030135,120]
[421766140,1778122025000,250.0,0.00030137,120]